Cogmind - Beta 13 @@@ ROGUE MODE // 2024.04.03 @ 18:24:26 Player: Gertrude Result: Destroyed by Y-45 Defender with Heavy Assault Rifle Performance ------------- Evolutions (2) 1000 Regions Visited (5) 1000 Robots Destroyed (19) 95 Value Destroyed (592) 592 Prototype IDs (0) 0 Alien Tech Used (0) 0 Bonus (0) 0 TOTAL SCORE: 2687 Bonus ------- None Cogmind --------- Core Integrity 0/550 Matter 163/300 Energy 42/100 System Corruption 10% Temperature Cool (40) Movement Core (150) Ox2 Location -8/Materials Parts ------- > --- POWER (1) -------- (None) > --- PROPULSION (2) --- (None) > --- UTILITY (6) ------ (None) > --- WEAPON (2) ------- Heavy Ion Cannon > --- INVENTORY (5) ---- Improved Hover Unit Improved Hover Unit Improved Hover Unit Improved Heat Sink Peak State ------------ > --- POWER ------------ Ion Engine > --- PROPULSION ------- Aluminum Leg Aluminum Leg > --- UTILITY ---------- Improved Heat Sink Small Storage Unit Small Matter Pod Particle Charger Hardened Medium Armor Plating System Shield > --- WEAPON ----------- Assault Rifle Flak Cannon > --- INVENTORY -------- Light Ion Engine Aluminum Leg Improved Hover Unit Improved Hover Unit Improved Hover Unit Improved Hover Unit Datajack [Rating: 22] Favorites ----------- Power Ion Engine Engine Ion Engine Propulsion Aluminum Leg Leg Aluminum Leg Hover Unit Improved Hover Unit Utility Small Storage Unit Device Improved Heat Sink Storage Small Storage Unit Hackware System Shield Protection Hardened Medium Armor Plating Weapon Assault Rifle Energy Cannon Heavy Ion Cannon Ballistic Gun Assault Rifle Ballistic Cannon Flak Cannon Slashing Weapon Greatsword Special Melee Weapon Datajack Build | -11 -10 -10 -10 -9 -8 ------- Run | Yrd Mat Min Exi Min Mat Slots Evolved 4 | . . . . . 4 Power . | . . . . . . Propulsion . | . . . . . . Utility 4 | . . . . . 4 Weapon . | . . . . . . Parts Attached 27 | 6 1 . . 2 18 Power 3 | 1 . . . 1 1 Engine 3 | 1 . . . 1 1 Core . | . . . . . . Reactor . | . . . . . . Propulsion 9 | 2 . . . 1 6 Treads . | . . . . . . Leg 6 | 2 . . . 1 3 Wheel . | . . . . . . Hover 3 | . . . . . 3 Flight . | . . . . . . Utility 6 | 1 1 . . . 4 Device 2 | . 1 . . . 1 Storage 2 | 1 . . . . 1 Processor . | . . . . . . Hackware 1 | . . . . . 1 Protection 1 | . . . . . 1 Artifact . | . . . . . . Weapon 9 | 2 . . . . 7 Energy Gun . | . . . . . . Energy Cannon 1 | . . . . . 1 Ballistic Gun 4 | 2 . . . . 2 Ballistic Cannon 1 | . . . . . 1 Launcher . | . . . . . . Special Weapon . | . . . . . . Impact Weapon . | . . . . . . Slashing Weapon 1 | . . . . . 1 Piercing Weapon . | . . . . . . Special Melee Weapon 2 | . . . . . 2 Unidentified Prototypes . | . . . . . . Parts Lost 17 | . . . . 2 15 Power 3 | . . . . 1 2 Propulsion 4 | . . . . . 4 Utility 5 | . . . . . 5 Weapon 5 | . . . . 1 4 Highest Loss Streak 7 | . . . . 1 7 To Critical Strikes 1 | . . . . . 1 Average Slot Usage (%) 75 | . 92 100 100 92 63 Engine 8 | . 14 14 14 11 6 Leg 19 | . 28 28 28 28 13 Device 9 | . 7 14 14 14 8 Storage 13 | . 14 14 14 14 13 Hackware 2 | . . . . . 3 Protection 1 | . . . . . 2 Ballistic Gun 13 | . 28 28 28 23 5 Ballistic Cannon 3 | . . . . . 6 Naked Turns 6 | . . . . . 6 Heaviest Build 31 | 12 13 13 13 15 31 Greatest Support 20 | 20 20 20 20 20 20 Greatest Overweight (x) 8 | . . . . . 8 Average Overweight (x) . | . . . . . . Largest Inventory Capacity 8 | 8 8 8 8 8 8 Average Capacity 7 | 7 8 8 8 8 7 Most Carried 8 | 4 7 7 7 8 8 Average Carried 5 | 1 3 7 7 7 6 Final Capacity 8 | 8 8 8 8 8 5 Final Carried 7 | 2 7 7 7 7 4 Class Distribution -------------------- 100% | Mutant Dominant Class ---------------- Mutant | -10/Materials Mutant | -10/Mines Mutant | -10/Exiles Mutant | -9/Mines Mutant | -8/Materials Resources | -11 -10 -10 -10 -9 -8 ----------- Run | Yrd Mat Min Exi Min Mat Matter Collected 761 | 239 57 . . 102 363 Remotely . | . . . . . . Salvage Created 579 | . 127 . . 176 276 Parts 32 | . 6 . . 8 18 Haulers Intercepted . | . . . . . . Recyclers Shooed 4 | . 1 . . . 3 Parts Field Recycled . | . . . . . . Retrieved Matter . | . . . . . . Parts Self-Destructed . | . . . . . . Prevented . | . . . . . . Kills | -11 -10 -10 -10 -9 -8 ------- Run | Yrd Mat Min Exi Min Mat Combat Hostiles Destroyed 18 | . 3 . . 4 11 Guns 8 | . 3 . . 4 1 Cannons 10 | . . . . . 10 Classes Destroyed 5 | . 1 . . . 4 Recycler 1 | . . . . . 1 Swarmer 5 | . . . . . 5 Grunt 11 | . 3 . . 4 4 Brawler 1 | . . . . . 1 Sentry 1 | . . . . . 1 Best Kill Streak 3 | . 2 . . 3 3 Combat Bots Only 3 | . 2 . . 3 3 Max Kills in Single Turn 1 | . 1 . . 1 1 Gunslinging . | . . . . . . Exploded . | . . . . . . Melee . | . . . . . . Uniques/NPCs Destroyed . | . . . . . . Combat | -11 -10 -10 -10 -9 -8 -------- Run | Yrd Mat Min Exi Min Mat Hostile Shots Fired 265 | . 11 . . 46 208 Missed 94 | . 6 . . 12 76 Damage Taken 2351 | . 93 . . 440 1818 Core 620 | . 12 . . 53 555 Absorbed by Shields . | . . . . . . Regen/Repaired (Parts) 167 | . . . . . 167 Core Remaining (%) 87 | 100 . . . 74 . Volleys Fired 79 | . 10 . . 24 45 Largest 2 | . 2 . . 2 2 Hottest 65 | . 40 . . 40 65 Shots Fired 120 | . 21 . . 35 64 Gun 74 | . 21 . . 35 18 Cannon 46 | . . . . . 46 Launcher . | . . . . . . Special . | . . . . . . Kinetic 117 | . 21 . . 35 61 Thermal 3 | . . . . . 3 Explosive . | . . . . . . Electromagnetic . | . . . . . . Robot Hit Streak 10 | . 3 . . 10 8 Robot Miss Streak 13 | . 3 . . 2 13 Penetration Max . | . . . . . . Secondary Targets 2 | . . . . 2 . Max Gunslinging Chain 1 | . . . . 1 . Shots Hit Robots 84 | . 9 . . 26 49 Core Hits 68 | . 8 . . 10 50 Critical Kills . | . . . . . . Critical Parts Destroyed . | . . . . . . Critical Strikes 1 | . . . . . 1 Sever 1 | . . . . . 1 Melee Attacks 4 | . . . . . 4 Impact . | . . . . . . Slashing 2 | . . . . . 2 Piercing . | . . . . . . Sneak Attacks 2 | . . . . . 2 Combat Hostiles . | . . . . . . Follow-up Attacks . | . . . . . . Damage Inflicted 1254 | . 108 . . 315 831 Guns 500 | . 108 . . 315 77 Cannons 677 | . . . . . 677 Explosions . | . . . . . . Melee 52 | . . . . . 52 Ramming 25 | . . . . . 25 Kinetic 1099 | . 108 . . 315 676 Thermal 78 | . . . . . 78 Explosive . | . . . . . . Electromagnetic . | . . . . . . Impact . | . . . . . . Slashing 52 | . . . . . 52 Piercing . | . . . . . . Highest Corruption 10 | . 4 4 4 4 10 Average Corruption 6 | . 3 4 4 4 9 Corruption Purged . | . . . . . . Corruption Blocked . | . . . . . . Effects 19 | . 2 2 2 4 9 Message Errors 4 | . . . 1 . 3 Matter Fused 6 | . 1 1 . 1 3 Energy Discharges 1 | . . . . 1 . Data Loss (minor) 1 | . . 1 . . . Data Loss (major) 1 | . . . . . 1 Misfires 4 | . 1 . . 1 2 Alerts 1 | . . . 1 . . Weapon Failures 1 | . . . . 1 . Overload Shots . | . . . . . . Overflow Damage . | . . . . . . Projectiles . | . . . . . . Explosions . | . . . . . . Melee . | . . . . . . Knockbacks 20 | . . . . . 20 Impact . | . . . . . . Kinetic 19 | . . . . . 19 Secondary 1 | . . . . . 1 Self-Inflicted Damage 7 | . . . . . 7 Shots . | . . . . . . Rammed 4 | . . . . . 4 Targets Rammed 6 | . . . . . 6 Kicked 2 | . . . . . 2 Crushed . | . . . . . . Highest Temperature 31 | . 2 . . . 31 Average Temperature 11 | . 2 . . . 12 Received Heat Transfer 948 | . 33 . . 249 666 Siege Activations . | . . . . . . Robots Corrupted . | . . . . . . Combat Hostiles . | . . . . . . Parts Fried . | . . . . . . Impact Corruptions . | . . . . . . Robots Melted . | . . . . . . Combat Hostiles . | . . . . . . Parts Melted . | . . . . . . Heat Transferred 111 | . . . . . 111 Parts Sabotaged . | . . . . . . Parts Stolen . | . . . . . . Parts Stripped . | . . . . . . Power Chain Reactions . | . . . . . . Alert | -11 -10 -10 -10 -9 -8 ------- Run | Yrd Mat Min Exi Min Mat Peak Influence 270 | . 96 37 . 105 270 Initial 40 | . . 37 . . 40 Average 76 | . 27 37 . 67 102 Maximum Alert Level 1 | . . . . . 1 Low Security (%) 85 | 100 100 100 . 100 75 Level 1 14 | . . . . . 24 Level 2 . | . . . . . . Level 3 . | . . . . . . Level 4 . | . . . . . . Level 5 . | . . . . . . High Security . | . . . . . . Max Security . | . . . . . . Squads Dispatched 4 | . 1 . . . 3 Investigation 1 | . . . . . 1 Extermination . | . . . . . . Reinforcement 1 | . 1 . . . . Assault . | . . . . . . Garrison 2 | . . . . . 2 Intercept . | . . . . . . Searches Triggered . | . . . . . . Construction Impeded . | . . . . . . Haulers Reinforced . | . . . . . . Active Scanning Responses . | . . . . . . Cargo Convoy Interrupts . | . . . . . . Stealth | -11 -10 -10 -10 -9 -8 --------- Run | Yrd Mat Min Exi Min Mat Distress Signals . | . . . . . . Communications Jammed . | . . . . . . Distress Signals . | . . . . . . Times Spotted 51 | . 6 . . 10 35 Peak Tracking Total 11 | . 2 . . 5 11 Tactical Retreats 7 | . . . . 1 6 Traps | -11 -10 -10 -10 -9 -8 ------- Run | Yrd Mat Min Exi Min Mat Traps Triggered 3 | . 3 . . . . Indirectly . | . . . . . . Trap Hack Attempts . | . . . . . . Triggered . | . . . . . . Disarmed . | . . . . . . Reprogrammed . | . . . . . . Reused . | . . . . . . Traps Extracted . | . . . . . . Installed . | . . . . . . Triggered . | . . . . . . Machines | -11 -10 -10 -10 -9 -8 ---------- Run | Yrd Mat Min Exi Min Mat Machines Disabled . | . . . . . . Max in Single Turn . | . . . . . . Garrison Access 1 | . . . . . 1 Machines Repaired . | . . . . . . Machines Dismantled . | . . . . . . Machines Sabotaged . | . . . . . . Overloaded Fab Kills . | . . . . . . Hacking | -11 -10 -10 -10 -9 -8 --------- Run | Yrd Mat Min Exi Min Mat Machines Accessed 9 | . 4 . . . 5 Terminals 6 | . 4 . . . 2 Fabricators . | . . . . . . Repair Stations 2 | . . . . . 2 Recycling Units . | . . . . . . Scanalyzers . | . . . . . . Garrison Access 1 | . . . . . 1 Total Hacks 28 | . 10 . . . 18 Successful 12 | . 4 . . . 8 Failed 16 | . 6 . . . 10 Catastrophic 5 | . 5 . . . . Database Lockouts . | . . . . . . Manual 9 | . 5 . . . 4 Terminals 14 | . 10 . . . 4 Fabricators . | . . . . . . Repair Stations 9 | . . . . . 9 Recycling Units . | . . . . . . Scanalyzers . | . . . . . . Garrison Access 5 | . . . . . 5 Terminal Hacks 6 | . 4 . . . 2 Alert Level 2 | . 1 . . . 1 Locate Traps 1 | . 1 . . . . Recall Investigation 2 | . 1 . . . 1 Hauler Manifests 1 | . 1 . . . . Fabricator Hacks . | . . . . . . Repair Station Hacks 5 | . . . . . 5 Scan Component 3 | . . . . . 3 Repair 2 | . . . . . 2 Recycling Unit Hacks . | . . . . . . Scanalyzer . | . . . . . . Garrison Access Hacks 1 | . . . . . 1 Seal Access 1 | . . . . . 1 Unauthorized Hacks . | . . . . . . Terminals . | . . . . . . Fabricators . | . . . . . . Repair Stations . | . . . . . . Recycling Units . | . . . . . . Scanalyzers . | . . . . . . Garrison Access . | . . . . . . Data Cores Recovered . | . . . . . . Used . | . . . . . . Hacking Detections 9 | . 4 . . . 5 Full Trace Events 2 | . 1 . . . 1 Feedback Events . | . . . . . . Feedback Blocked . | . . . . . . Robot Schematics Acquired . | . . . . . . Robots Built . | . . . . . . Authchips . | . . . . . . Time . | . . . . . . Total Robot Build Rating . | . . . . . . Part Schematics Acquired . | . . . . . . Parts Built . | . . . . . . Authchips . | . . . . . . Time . | . . . . . . Total Part Build Rating . | . . . . . . Parts Repaired 2 | . . . . . 2 Time 52 | . . . . . 52 Parts Recycled . | . . . . . . Recycled Matter . | . . . . . . Retrieved Matter . | . . . . . . Retrieved Components . | . . . . . . Parts Scanalyzed . | . . . . . . Part Schematics Acquired . | . . . . . . Parts Damaged . | . . . . . . Bothacking | -11 -10 -10 -10 -9 -8 ------------ Run | Yrd Mat Min Exi Min Mat Used RIF Installer . | . . . . . . Robots Hacked 1 | . . . . . 1 Non-combat 1 | . . . . . 1 Combat . | . . . . . . Robot Hacks Applied 1 | . . . . . 1 no_distress 1 | . . . . . 1 Relay Couplers Released . | . . . . . . Fabnet Peak Effective % . | . . . . . . Robots Rewired . | . . . . . . Allies Hacked . | . . . . . . Hacks Repelled . | . . . . . . Allies | -11 -10 -10 -10 -9 -8 -------- Run | Yrd Mat Min Exi Min Mat Total Allies . | . . . . . . Largest Group . | . . . . . . Highest-Rated Group . | . . . . . . Highest-Rated Ally . | . . . . . . Total Orders . | . . . . . . Ally Attacks . | . . . . . . Total Damage . | . . . . . . Kills . | . . . . . . Allies Corrupted . | . . . . . . Allies Melted . | . . . . . . Intel | -11 -10 -10 -10 -9 -8 ------- Run | Yrd Mat Min Exi Min Mat Robot Analysis Total . | . . . . . . Derelict Logs Recovered 2 | . . . . 2 . Drone Launches . | . . . . . . Drone Recoveries . | . . . . . . Exploration | -11 -10 -10 -10 -9 -8 ------------- Run | Yrd Mat Min Exi Min Mat Turns Passed 1241 | 60 235 29 36 170 711 Spaces Moved 706 | 45 166 25 31 90 349 Core 32 | 10 . . . . 22 Treads . | . . . . . . Legs 623 | 35 166 25 31 90 276 Wheels . | . . . . . . Hover 51 | . . . . . 51 Flight . | . . . . . . Fastest Speed 50 | 50 120 120 120 120 50 Average Speed 124 | 104 120 120 120 120 131 Slowest Speed 450 | 120 120 120 120 120 450 Overloaded Moves . | . . . . . . Propulsion Burnouts . | . . . . . . Robots Hopped . | . . . . . . Cave-ins Triggered . | . . . . . . Exploration Rate (%) 21 | 5 45 8 8 33 27 Regions Visited 5 Branch Regions 3 Pre-discovered Areas 1 | . . . . 1 . Known Exits Taken 1 | . . . . 1 . Unknown Exits Taken 4 | 1 1 1 1 . . Scrap Searched 1 | . . . . 1 . Spaces Dug . | . . . . . . Terrain Destroyed . | . . . . . . Melee . | . . . . . . Projectile . | . . . . . . AOE . | . . . . . . Terrain Rammed . | . . . . . . Walls Destroyed . | . . . . . . Machines Disabled . | . . . . . . Actions | -11 -10 -10 -10 -9 -8 --------- Run | Yrd Mat Min Exi Min Mat Total 941 | 58 182 24 30 116 531 Wait 93 | . . . . . 93 Move 701 | 44 165 24 30 89 349 Hop . | . . . . . . Pick Up 28 | 8 6 . . 1 13 Fast Attach . | . . . . . . Attach 20 | 6 1 . . 1 12 Detach . | . . . . . . Swap 7 | . . . . 1 6 Drop 3 | . . . . . 3 Fire 79 | . 10 . . 24 45 Melee 4 | . . . . . 4 Ram 4 | . . . . . 4 Kick 2 | . . . . . 2 Crush . | . . . . . . Escape Stasis . | . . . . . . Rewire . | . . . . . . Trap . | . . . . . . Miscellaneous . | . . . . . . Route ------- -11/Scrapyard -10/Materials -10/Mines -10/Exiles -9/Mines (discovered 2 exits: *Mat x2) -8/Materials History --------- Turn | Location | Event 3 | -11/Scrapyard | Discovered new exit (range 15) 61 | -11/Scrapyard | Entered Materials 248 | -10/Materials | Discovered new exit (range 14) 296 | -10/Materials | Entered Mines 309 | -10/Mines | Build established: Mutant 320 | -10/Mines | Deemed a non-threat by the Exiles lab entrance 320 | -10/Mines | Discovered new exit (range 5) 325 | -10/Mines | Entered Exiles 346 | -10/Exiles | Discovered new exit (range 14) 361 | -10/Exiles | Entered Mines 416 | -9/Mines | Learned location of Zion (-6) 423 | -9/Mines | Identified exit to Materials 526 | -9/Mines | Discovered exit to Materials (range 5) 529 | -9/Mines | Assembled infested the area 531 | -9/Mines | Entered Materials 531 | -8/Materials | Evolved 4 slots: Utility x4 576 | -8/Materials | Repaired Aluminum Leg 785 | -8/Materials | Repaired Assault Rifle 914 | -8/Materials | Garrison activated, responded to threat 967 | -8/Materials | Lost 3 parts (1p1n1u) 1014 | -8/Materials | System corruption reached 10% 1044 | -8/Materials | Lost 5 parts (1n3u1w) 1178 | -8/Materials | Core integrity fell below 50% 1237 | -8/Materials | Core integrity fell below 20% 1242 | -8/Materials | Destroyed by Y-45 Defender with Heavy Assault Rifle Last Messages --------------- K-01 Serf cleans the Terminal. G-47 Trooper knocked back. Flak Cannon destroyed. R#5#INBZF7NZCXBOE>9IKLL Lgt. Ion Engine destroyed. Acquired Greatsword. Aluminum Leg destroyed. S-10 Pest destroyed. S-10 Pest Lgt. Assault Rifle severed. Greatsword destroyed. Sml. Storage Unit destroyed. S-10 Pest destroyed. K-01 Serf collects debris. Critical hit (Burn: +37). K-01 Serf collects debris. Dropped Aluminum Leg. K-01 Serf collects debris. Acquired Hvy. Ion Cannon. K-01 Serf collects debris. Y-45 Defender destroyed. Map ----- +----------------------------------------------------+ | #???????????????????????????????????????????????? | | #???????????????????????????????????????????????? | | #???????????????????????????????????????????????? | | #???????????????????????????????????????????????? | | #???????????????????????????????????????????????? | | +########????????????????????????????????????????? | | #????????????????????????????????????????? | | """ #????????????????????????????????????????? | | """ #????????????????????????????????????????? | | """ #????????????????????????????????????????? | | #????????????????????????????????????????? | | " " #????????????????????????????????????????? | | "G" #????????????????????????????????????????? | | """ #????????????????????????????????????????? | | #????????????????????????????????????????? | | ############?????????????????????????????????????? | | ???????????????????????????????????? | | ???????????????????????????????????? | | ???????????????????????????????????? | | #############????????????????????????????????????? | | ?????????????######??????????????????????????????? | | ?????????????#"""""###???????????????????????????? | | ##############""T""#T#######?????????????????????? | | | //#?????????????????????? | | !%! r a ![ /#?????????????????????? | | = *%! =@]#?????????????????????? | | #########/########## ]]#?????????????????????? | | ???#! #??????# gk !!#?????????????????????? | | ???# """ #??????#*%[ !!#?????????????????????? | | ???# """ ######## Yg########??????????????????? | | ???# """ # r ??????????????? | | ???# / Yk ??????????????? | | ???# """ # ??????????????? | | ???# """ # ########### ??????????????? | | ???# """ # #??????????? ???????????????? | | ???# # #???????????? ???????????????? | | ???##+##+#### #????????????? ???????????????? | | ????????????# #?????????????? ???????????????? | | ????????????# #??????????????? ????????????????? | | ????????????# #????????????????????????????????? | | ????????????# #????????????????????????????????? | | ????????????# #????????????????????????????????? | | ????????????# #????????????????????????????????? | | ????????????# #????????????????????????????????? | | ????????????# ????????????????????????????????? | | ????????????+ ????????????????????????????????? | | ????????????? ?????????????????????????????????? | | ?????????????????????????????????????????????????? | | ?????????????????????????????????????????????????? | | ?????????????????????????????????????????????????? | +----------------------------------------------------+ Best States ------------- Heat Dissipation 45 Energy Generation 10 Energy Capacity 250 Matter Stores 300 Matter Capacity 350 Sight Range 16 Terrain Scan Density 10 Armor Coverage 225 Evasion (%) 55 Particle Charging 15 Defensive Hacking 10 Item Schematics ----------------- None Robot Schematics ------------------ None Fabricated ------------ Nothing Alien Tech Used ----------------- None Achievements -------------- Oops System Compromised Troublemaker Challenges ------------ None Game ------ Seed ActuatorWeaponsCalibrator Manual? 0 Play Time 00:18:27 Cumulative 2.5 hours Start 2024.04.03 @ 18:09:50 End 2024.04.03 @ 18:24:26 Sessions 1 Manual Loads 0 Difficulty Rogue Special Mode None Game No. 9 Rogue 9 Adventurer 0 Explorer 0 Win Type - Total 0 Types 0/0/0/0/0/0/0/0/0 Lore% 3 Gallery% 9 Achievement% 10 Wizard Run 0 Options --------- Layout 1 ASCII 0 Keyboard 0 Movement Mouse Keybinds 0 Fullscreen 1 Font 24/Smallcaps Map View 50x35 Zoom Use 0% Tactical HUD 0 Map Filters NONE Filters NONE Steam 1 RUN: b9475a85-225a-4669-a4ed-2deeb1ba1ea4